Cogmind - Beta 15 @@@ ROGUE MODE // 2025.08.17 @ 00:03:41 Player: Treadwheel Result: Destroyed by S-10 Pest with Light Assault Rifle Performance ------------- Evolutions (0) 0 Regions Visited (2) 400 Robots Destroyed (15) 75 Value Destroyed (417) 417 Prototype IDs (0) 0 Alien Tech Used (0) 0 Bonus (0) 0 TOTAL SCORE: 892 Bonus ------- None Cogmind --------- Core Integrity 0/250 Matter 300/300 Energy 84/100 System Corruption 0% Temperature Cool (0) Movement Rolling (100) Location -10/Subcaves Parts ------- > --- POWER (1) -------- (None) > --- PROPULSION (2) --- Compact Wheel > --- UTILITY (2) ------ Improved Heat Sink Medium Storage Unit > --- WEAPON (2) ------- Beam Cannon Hammer > --- INVENTORY (10) --- Subdweller Power Source Large Storage Unit Huge Storage Unit Subdweller Optics Signal Interpreter Salvaging Laser Grenade Launcher Datajack Scrap Shield Fragment (46) Scrap Shield Fragment (40) Peak State ------------ > --- POWER ------------ Ion Engine > --- PROPULSION ------- Light Treads Compact Wheel > --- UTILITY ---------- Improved Heat Sink Medium Storage Unit > --- WEAPON ----------- Beam Cannon Light Cannon > --- INVENTORY -------- Subdweller Power Source Compact Wheel Large Storage Unit Huge Storage Unit Subdweller Optics Signal Interpreter Grenade Launcher Datajack Hammer [Rating: 10] Favorites ----------- Power Ion Engine Engine Ion Engine Propulsion Compact Wheel Treads Light Treads Leg Aluminum Leg Wheel Compact Wheel Utility Small Storage Unit Device Sensor Array Storage Small Storage Unit Processor Signal Interpreter Weapon Light Cannon Energy Gun Medium Laser Energy Cannon Beam Cannon Ballistic Gun Light Assault Rifle Ballistic Cannon Light Cannon Launcher Grenade Launcher Impact Weapon Hammer Special Melee Weapon Datajack Build | -11 -10 -10 ------- Run | Yrd Mat Sub Slots Evolved . | . . . Power . | . . . Propulsion . | . . . Utility . | . . . Weapon . | . . . Parts Attached 21 | 4 15 2 Power 3 | . 2 1 Engine 3 | . 2 1 Core . | . . . Reactor . | . . . Propulsion 5 | 3 1 1 Treads 3 | 2 . 1 Leg . | . . . Wheel 2 | 1 1 . Hover . | . . . Flight . | . . . Utility 8 | 1 7 . Device 3 | . 3 . Storage 4 | 1 3 . Processor 1 | . 1 . Hackware . | . . . Protection . | . . . Artifact . | . . . Weapon 5 | . 5 . Energy Gun . | . . . Energy Cannon 1 | . 1 . Ballistic Gun . | . . . Ballistic Cannon 1 | . 1 . Launcher 1 | . 1 . Special Weapon . | . . . Impact Weapon 1 | . 1 . Slashing Weapon . | . . . Piercing Weapon . | . . . Special Melee Weapon 1 | . 1 . Unidentified Prototypes . | . . . Parts Lost 8 | . 3 5 Power 2 | . 1 1 Propulsion 3 | . . 3 Utility 2 | . 2 . Weapon 1 | . . 1 Highest Loss Streak 4 | . 2 4 To Critical Strikes . | . . . Average Backups 8 | 6 8 7 Power . | 1 1 . Propulsion 2 | 4 2 . Utility 2 | . 2 3 Weapon 1 | 1 1 1 Tool/Special . | . . . Unused Backups 18 | 6 8 4 Power 3 | 1 2 . Propulsion 6 | 2 4 . Utility 4 | 1 . 3 Weapon 5 | 2 2 1 Tool/Special . | . . . Average Slot Usage (%) 95 | . 98 88 Engine 12 | . 13 10 Treads 11 | . 14 5 Wheel 13 | . 13 14 Device 11 | . 9 14 Storage 14 | . 15 14 Processor 1 | . 2 . Energy Cannon 5 | . 2 14 Ballistic Gun 2 | . 4 . Ballistic Cannon 8 | . 8 7 Launcher 4 | . 5 . Impact Weapon 5 | . 5 7 Peak Build Rating 10 | 7 9 10 Average Rating 8 | 6 7 9 On Entrance 7 | 6 7 9 Naked Turns . | . . . Heaviest Build 22 | 18 22 22 Greatest Support 40 | 40 16 32 Greatest Overweight (x) 1 | 1 1 1 Average Overweight (x) . | . . . Largest Inventory Capacity 15 | 8 15 10 Average Capacity 8 | 8 8 10 Most Carried 10 | 8 10 10 Average Carried 8 | 6 8 8 Final Capacity 10 | 8 10 10 Final Carried 10 | 8 8 10 Class Distribution -------------------- 94% | Mutant 5% | Scavenger-Mutant Dominant Class ---------------- Mutant | -10/Materials Mutant | -10/Subcaves Resources | -11 -10 -10 ----------- Run | Yrd Mat Sub Matter Collected 664 | 250 286 128 Remotely . | . . . Salvage Created 398 | 74 256 68 Parts 19 | 4 13 2 Haulers Intercepted 2 | . 2 . Recyclers Shooed . | . . . Parts Field Recycled . | . . . Retrieved Matter . | . . . Parts Self-Destructed 7 | . . 7 Prevented . | . . . Kills | -11 -10 -10 ------- Run | Yrd Mat Sub Combat Hostiles Destroyed 11 | . 9 2 Guns 2 | . 2 . Cannons 7 | . 5 2 AOE 2 | . 2 . Classes Destroyed 6 | 2 3 1 Tunneler 1 | 1 . . Hauler 2 | . 2 . Recycler 1 | 1 . . Swarmer 3 | . 3 . Grunt 6 | . 6 . Subdweller 2 | . . 2 Best Kill Streak 3 | 1 3 1 Combat Bots Only 3 | . 3 1 Max Kills in Single Turn 2 | 1 2 1 Gunslinging . | . . . Exploded 1 | . 1 . Melee . | . . . Uniques/NPCs Destroyed . | . . . Combat | -11 -10 -10 -------- Run | Yrd Mat Sub Hostile Shots Fired 70 | . 33 37 Missed 22 | . 9 13 Hits 48 | . 24 24 Projectile 48 | . 24 24 Critical Strikes 1 | . . 1 Damage Taken 1049 | . 551 498 Core 258 | . 88 170 Absorbed by Shields . | . . . Regen/Repaired (Parts) 12 | . 12 . Core Remaining (%) 100 | 100 . . Volleys Fired 70 | 10 40 20 Largest 2 | 2 2 2 Hottest 90 | 70 90 90 Shots Fired 104 | 20 53 31 Gun 32 | 20 12 . Cannon 66 | . 35 31 Launcher 6 | . 6 . Special . | . . . Kinetic 59 | 10 38 11 Thermal 39 | 10 9 20 Explosive 6 | . 6 . Electromagnetic . | . . . Robot Hit Streak 11 | 3 8 11 Robot Miss Streak 6 | 3 6 1 Penetration Max . | . . . Secondary Targets . | . . . Shots Hit Robots 64 | 11 28 25 Core Hits 28 | 3 21 4 Critical Kills . | . . . Critical Parts Destroyed 1 | . 1 . Critical Strikes 1 | . 1 . Smash 1 | . 1 . Melee Attacks 3 | . 3 . Impact 3 | . 3 . Slashing . | . . . Piercing . | . . . Sneak Attacks 1 | . 1 . Combat Hostiles . | . . . Follow-up Attacks . | . . . Damage Inflicted 1113 | 110 794 209 Guns 208 | 110 98 . Cannons 493 | . 284 209 Explosions 346 | . 346 . Melee 66 | . 66 . Ramming . | . . . Kinetic 419 | 48 318 53 Thermal 322 | 62 104 156 Explosive 306 | . 306 . Electromagnetic . | . . . Impact 66 | . 66 . Slashing . | . . . Piercing . | . . . Highest Corruption . | . . . Average Corruption . | . . . Corruption Purged . | . . . Corruption Blocked . | . . . Overload Shots . | . . . Overflow Damage 79 | . 79 . Projectiles . | . . . Explosions 35 | . 35 . Melee 44 | . 44 . Knockbacks 4 | . 4 . Impact . | . . . Kinetic 3 | . 3 . Secondary 1 | . 1 . Self-Inflicted Damage 251 | . 251 . Shots 3 | . 3 . Rammed . | . . . Targets Rammed . | . . . Kicked . | . . . Crushed . | . . . Highest Temperature 225 | 90 145 225 Average Temperature 51 | 34 48 132 Received Heat Transfer 507 | . 90 417 Siege Activations . | . . . Martial Activations . | . . . Shielding Activations . | . . . Robots Disrupted . | . . . Combat Hostiles . | . . . Robots Corrupted 1 | . 1 . Combat Hostiles . | . . . Parts Fried 1 | . 1 . Impact Corruptions 3 | . 3 . Robots Melted . | . . . Combat Hostiles . | . . . Parts Melted . | . . . Heat Transferred 753 | 185 235 333 Parts Sabotaged . | . . . Parts Stolen . | . . . Parts Stripped . | . . . Power Chain Reactions . | . . . Alert | -11 -10 -10 ------- Run | Yrd Mat Sub Maximum Alert Level . | . . . Low Security (%) 100 | 100 100 . Level 1 . | . . . Level 2 . | . . . Level 3 . | . . . Level 4 . | . . . Level 5 . | . . . High Security . | . . . Max Security . | . . . Peak Influence 130 | 5 130 . Initial . | . . . Average 38 | . 42 . Influence Increases 475 | 10 420 45 Destroy 0b10 Robot/C 180 | . 180 . Destroy 0b10 Robot/NC 20 | 10 10 . Destroy Leader 44 | . 44 . Successful Hack 19 | . 19 . Disable Machine 90 | . 90 . Destroy Structure 77 | . 77 . Lose Combat Pursuer 45 | . . 45 Influence Decreases 430 | 10 306 114 Entered New Map 55 | . . 55 Time Decay 335 | 10 276 49 Lost Part 40 | . 30 10 Squads Dispatched 2 | . 2 . Investigation 1 | . 1 . Extermination . | . . . Reinforcement 1 | . 1 . Assault . | . . . Garrison . | . . . Intercept . | . . . Searches Triggered . | . . . Construction Impeded . | . . . Haulers Reinforced . | . . . Active Scanning Responses . | . . . Cargo Convoy Interrupts . | . . . Stealth | -11 -10 -10 --------- Run | Yrd Mat Sub Distress Signals 1 | . 1 . Communications Jammed . | . . . Distress Signals . | . . . Times Spotted 23 | . 15 8 Peak Tracking Total 6 | . 4 6 Tactical Retreats 1 | . . 1 Traps | -11 -10 -10 ------- Run | Yrd Mat Sub Traps Triggered 3 | . 3 . Indirectly . | . . . Trap Hack Attempts . | . . . Triggered . | . . . Disarmed . | . . . Reprogrammed . | . . . Reused . | . . . Traps Extracted . | . . . Installed . | . . . Triggered . | . . . Machines | -11 -10 -10 ---------- Run | Yrd Mat Sub Machines Disabled 6 | . 6 . Max in Single Turn 2 | . 2 . Machines Repaired . | . . . Machines Dismantled . | . . . Machines Sabotaged . | . . . Overloaded Fab Kills . | . . . Hacking | -11 -10 -10 --------- Run | Yrd Mat Sub Machines Accessed 9 | . 9 . Terminals 7 | . 7 . Fabricators . | . . . Repair Stations 1 | . 1 . Recycling Units 1 | . 1 . Scanalyzers . | . . . Garrison Access . | . . . Total Hacks 25 | . 25 . Successful 14 | . 14 . Failed 11 | . 11 . Catastrophic 2 | . 2 . Database Lockouts . | . . . Manual 11 | . 11 . Terminals 15 | . 15 . Fabricators . | . . . Repair Stations 7 | . 7 . Recycling Units 3 | . 3 . Scanalyzers . | . . . Garrison Access . | . . . Terminal Hacks 5 | . 5 . Record 1 | . 1 . Level Access Points 1 | . 1 . Terminal Index 1 | . 1 . Alert Level 1 | . 1 . Registered Components 1 | . 1 . Fabricator Hacks . | . . . Repair Station Hacks 5 | . 5 . Scan Component 3 | . 3 . Repair 2 | . 2 . Recycling Unit Hacks 3 | . 3 . Process 1 | . 1 . Report Inventory 1 | . 1 . Retrieve Matter 1 | . 1 . Scanalyzer . | . . . Garrison Access Hacks . | . . . Unauthorized Hacks 1 | . 1 . Terminals 1 | . 1 . Botnet 1 | . 1 . Fabricators . | . . . Repair Stations . | . . . Recycling Units . | . . . Scanalyzers . | . . . Garrison Access . | . . . Data Cores Recovered . | . . . Used . | . . . Hacking Detections 9 | . 9 . Full Trace Events . | . . . Feedback Events . | . . . Feedback Blocked . | . . . Robot Schematics Acquired . | . . . Robots Built . | . . . Authchips . | . . . Time . | . . . Total Robot Build Rating . | . . . Part Schematics Acquired . | . . . Parts Built . | . . . Authchips . | . . . Time . | . . . Total Part Build Rating . | . . . Parts Repaired 2 | . 2 . Time 52 | . 52 . Parts Recycled . | . . . Recycled Matter 226 | . 226 . Retrieved Matter 467 | . 467 . Retrieved Components . | . . . Parts Scanalyzed . | . . . Part Schematics Acquired . | . . . Parts Damaged . | . . . Bothacking | -11 -10 -10 ------------ Run | Yrd Mat Sub Used RIF Installer . | . . . Robots Hacked . | . . . Non-combat . | . . . Combat . | . . . Robot Hacks Applied . | . . . Relay Couplers Released . | . . . Fabnet Peak Effective % . | . . . Robots Rewired . | . . . Allies Hacked . | . . . Hacks Repelled . | . . . Allies | -11 -10 -10 -------- Run | Yrd Mat Sub Total Allies . | . . . Largest Group . | . . . Highest-Rated Group . | . . . Highest-Rated Ally . | . . . Total Orders . | . . . Ally Attacks . | . . . Total Damage . | . . . Kills . | . . . Allies Corrupted . | . . . Allies Melted . | . . . Intel | -11 -10 -10 ------- Run | Yrd Mat Sub Active Infowar (turns) 636 | . 636 . Sensors 636 | . 636 . Robot Analysis Total . | . . . Derelict Logs Recovered . | . . . Drone Launches . | . . . Drone Recoveries . | . . . Exploration | -11 -10 -10 ------------- Run | Yrd Mat Sub Turns Passed 1399 | 113 915 371 Spaces Moved 979 | 54 660 265 Core . | . . . Treads 24 | 24 . . Legs . | . . . Wheels 955 | 30 660 265 Hover . | . . . Flight . | . . . Fastest Speed 100 | 115 100 100 Average Speed 110 | 135 109 110 Slowest Speed 160 | 160 115 115 Overloaded Moves . | . . . Propulsion Burnouts . | . . . Robots Hopped . | . . . Potential Cave-ins . | . . . Cave-ins Triggered . | . . . Exploration Rate (%) 35 | 4 82 20 Regions Visited 2 Branch Regions 1 Pre-discovered Areas . | . . . Known Exits Taken . | . . . Unknown Exits Taken 2 | 1 1 . Scrap Searched . | . . . Spaces Dug 3 | . 3 . Terrain Destroyed 71 | . 71 . Melee . | . . . Projectile . | . . . AOE 71 | . 71 . Terrain Rammed . | . . . Walls Destroyed . | . . . Machines Disabled . | . . . Actions | -11 -10 -10 --------- Run | Yrd Mat Sub Total 1184 | 74 795 315 Wait 64 | 3 41 20 Move 977 | 53 659 265 Hop . | . . . Pick Up 23 | 3 15 5 Fast Attach 8 | 1 7 . Attach 8 | . 4 4 Detach 3 | . 2 1 Swap 15 | 3 12 . Drop 13 | 1 12 . Fire 70 | 10 40 20 Melee 3 | . 3 . Ram . | . . . Kick . | . . . Crush . | . . . Escape Stasis . | . . . Rewire . | . . . Trap . | . . . Miscellaneous . | . . . Route ------- -11/Scrapyard -10/Materials (discovered 4 exits: *Mat x3 / [*Sub]) -10/Subcaves (discovered 1 exit: [Scr]) History --------- Turn | Location | Event 7 | -11/Scrapyard | Discovered new exit (range 3) 114 | -11/Scrapyard | Entered Materials 115 | -10/Materials | Met a group of wandering Federalists 310 | -10/Materials | Build established: Mutant 379 | -10/Materials | Identified exit to Materials 726 | -10/Materials | Repaired Sensor Array 752 | -10/Materials | Repaired Com. Wheel 1022 | -10/Materials | Discovered new exit (range 5) 1029 | -10/Materials | Entered Subcaves 1030 | -10/Subcaves | Continued accompanying wandering Federalists (5) 1030 | -10/Subcaves | Approached by a straggling Scientist 1204 | -10/Subcaves | Core integrity fell below 50% 1224 | -10/Subcaves | Core integrity fell below 20% 1251 | -10/Subcaves | Lost 4 parts (1p2n1w) 1400 | -10/Subcaves | Destroyed by S-10 Pest with Light Assault Rifle Last Messages --------------- 01215_ Acquired 29 matter. 01217_ Y0-IM4(R) affixes Scrap Shield Fragment to Scrap Shield. 01220_ Com. Wheel destroyed. 01223_ Critical hit (Meltdown: +270). 01229_ Subatomizers dissect the Salvaging Laser. 4D-XQ8(c): "I think it's somewhere west of here" 01233_ Y0-IM4(R) destroyed. 01235_ Acquired 13 matter. 01237_ Acquired Scrap Shield Fragment. 01244_ Subatomizers dissect the Salvaging Laser. 01245_ Acquired Salvaging Laser. 4D-XQ8(c): "I think it's somewhere west of here" 01314_ Sub. Power Source shoots sparks and powers down. 01324_ AR-XR1(u) tweaks Twisted Machinery. 4D-XQ8(c): "I think it's somewhere southwest of here" 01340_ AR-XR1(u) tweaks Twisted Machinery. 01365_ H2-GBS(z): "She is not going to be happy we haven't found any suitable candidates yet." 4D-XQ8(c): "I think it's somewhere west of here" 01396_ S-10 Pest springs to life. Map ----- +----------------------------------------------------+ | ??????????????????????# """ #??????????????????? | | ?????????????????????##" " " #??????????????????? | | ????????????????????## """ #???????????????????? | | ?????????????######?# "" #???????????????????? | | ?????????????# # "" #????????????????????? | | ??????????? " ######????????????????? | | ??????????? """" ## ##????????####???? | | ?????????????? "##" " ########## ##??? | | ?????????????????????##"" """ #??? | | ??????????????????????##"" " ##?? | | ???????????????????????#### ### ### #?? | | ??????????????????????????# #?## ##?# #?? | | ??????????????????????????## #??#####??## #?? | | ???????????????????????????### ##???????## ### | | ?????????????????????????????## ####?? # | | ??????????????????????????????## ## ## | | ????????????????####???????###### # ## | | ????????????????#"""??????## #?# ### | | ????????????????#" "?????# #### ### ### | | ????????????????#" ?????# ## #??? ##?# | | ????????????????# ????# #?# ##### ###??# | | ????????????????# s ????# #?# ##?#????## | | ????????????????#" ???# #??## #######???# | | ???????????????????#s #### ###### ## #??# | | ???????????????????# s c### #?# | | ???????????????????# ##s@ ### #?# | | ??????????????????# ???### #### ### #?### # | | ???????????????????????######## ## ##???##? | | ???????????????????????# ### #??????? | | ??????????????????????## # | | ?????????????????????## ### # | | ????????????????????## ##?# ##### # # | | ????????????????????# #?## ##????####?# | | ???????????????????## # #??# #??????????# | | ??????????????????## ### ##?? #???????????# | | ??????????????????# ##?# #?? ????????????? | | ??????????????????#####??# ? ##???????????? | | ?????????????????????????### # ## ##????????????? | | ????????????????????????????##??####?????????????? | | ?????????????????????????????????????????????????? | | ?????????????????????????????????????????????????? | | ?????????????????????????????????????????????????? | | ?????????????????????????????????????????????????? | | ?????????????????????????????????????????????????? | | ?????????????????????????????????????????????????? | | ?????????????????????????????????????????????????? | | ?????????????????????????????????????????????????? | | ?????????????????????????????????????????????????? | | ?????????????????????????????????????????????????? | | ?????????????????????????????????????????????????? | +----------------------------------------------------+ Best States ------------- Heat Dissipation 39 Energy Generation 15 Energy Capacity 250 Matter Stores 300 Matter Capacity 300 Sight Range 16 Robot Scan Range 14 Terrain Scan Density 10 Evasion (%) 40 Recoil Reduction 2 Item Schematics ----------------- None Robot Schematics ------------------ None Fabricated ------------ Nothing Repaired ---------- Com. Wheel | 60% | -10/Materials Alien Tech Used ----------------- None Achievements -------------- None Challenges ------------ None Game ------ Seed ExpertImpactScreen Manual? 0 Play Time 00:43:02 Cumulative 60.3 hours Start 2025.08.14 @ 16:30:45 End 2025.08.17 @ 00:03:41 Sessions 3 Manual Loads 0 Difficulty Rogue Special Mode None Game No. 36 Rogue 36 Adventurer 0 Explorer 0 Win Type - Total 1 Types 1/0/0/0/0/0/0/0/0/0 Lore% 21 Gallery% 43 Achievement% 38 Wizard Run 0 Options --------- Layout 0 ASCII 0 Keyboard 0 Movement Numpad Keybinds 0 Fullscreen 2 Font 18/SmallcapsGlow Map View 76x50 Zoom Use 0% Tactical HUD 1 Map Filters NONE Filters NONE Steam 1 RUN: 87e7e413-d7b7-449d-89d1-bf8b353159be